[Event "December 5 Early 2023"]
[Site "https://www.chess.com"]
[Date "2023.12.05"]
[Round "3"]
[White "Muetsch, Annmarie"]
[Black "Verbin, Valentina"]
[Result "1-0"]
[Board "212"]
[TimeControl "180+1"]
[WhiteFideId "12971367"]
[BlackFideId "13905910"]
[WhiteElo "2413"]
[BlackElo "2218"]
[WhiteTeam "GER"]
[BlackTeam "MDA"]
[WhiteClock "0:00:46"]
[BlackClock "0:00:00"]

1. d3 {[%clk 0:03:00]}  e5 {[%clk 0:02:56]} 2. Nd2 {[%clk 0:02:59]}  d5 {[%clk 0:02:51]} 3. e4 {[%clk 0:02:59]}  Nf6 {[%clk 0:02:51]} 4. Ngf3 {[%clk 0:02:58]}  Nc6 {[%clk 0:02:38]} 5. Be2 {[%clk 0:02:55]}  Be7 {[%clk 0:02:37]} 6. c3 {[%clk 0:02:55]}  O-O {[%clk 0:02:35]} 7. Qc2 {[%clk 0:02:55]}  a5 {[%clk 0:02:31]} 8. h3 {[%clk 0:02:52]}  h6 {[%clk 0:02:29]} 9. g4 {[%clk 0:02:51]}  dxe4 {[%clk 0:02:09]} 10. dxe4 {[%clk 0:02:49]}  Nh7 {[%clk 0:02:09]} 11. h4 {[%clk 0:02:48]}  Bxg4 {[%clk 0:02:08]} 12. Rg1 {[%clk 0:02:38]}  h5 {[%clk 0:01:58]} 13. Nc4 {[%clk 0:02:28]}  Bxh4 {[%clk 0:01:52]} 14. Nfxe5 {[%clk 0:02:19]}  Nxe5 {[%clk 0:01:36]} 15. Nxe5 {[%clk 0:02:18]}  Bxe2 {[%clk 0:01:17]} 16. Qxe2 {[%clk 0:02:19]}  Re8 {[%clk 0:00:54]} 17. Qxh5 {[%clk 0:02:17]}  Qf6 {[%clk 0:00:54]} 18. Nf3 {[%clk 0:01:33]}  Rxe4+ {[%clk 0:00:52]} 19. Kf1 {[%clk 0:01:32]}  g6 {[%clk 0:00:28]} 20. Rg4 {[%clk 0:00:50]}  Kh8 {[%clk 0:00:20]} 21. Qxh4 {[%clk 0:00:48]}  Rxg4 {[%clk 0:00:04]} 22. Qxg4 {[%clk 0:00:47]}  Rd8 {[%clk 0:00:04]} 23. Be3 {[%clk 0:00:46]}  b6 {[%clk 0:00:00]} 24. Bd4 {[%clk 0:00:46]} 1-0

[Event "December 5 Early 2023"]
[Site "https://www.chess.com"]
[Date "2023.12.05"]
[Round "3"]
[White "Marchesich, Giovanni"]
[Black "Cagara, Paulina"]
[Result "0-1"]
[Board "214"]
[TimeControl "180+1"]
[WhiteFideId "2824790"]
[BlackFideId "1124870"]
[WhiteElo "2409"]
[BlackElo "2198"]
[WhiteTeam "ITA"]
[BlackTeam "POL"]
[WhiteClock "0:00:43"]
[BlackClock "0:01:02"]

1. e4 {[%clk 0:03:00]}  c6 {[%clk 0:02:59]} 2. Ne2 {[%clk 0:02:51]}  d5 {[%clk 0:02:58]} 3. e5 {[%clk 0:02:52]}  Bf5 {[%clk 0:02:56]} 4. Ng3 {[%clk 0:02:52]}  Bg6 {[%clk 0:02:56]} 5. h4 {[%clk 0:02:52]}  h5 {[%clk 0:02:55]} 6. e6 {[%clk 0:02:47]}  Nf6 {[%clk 0:02:48]} 7. d4 {[%clk 0:02:42]}  Qd6 {[%clk 0:02:46]} 8. exf7+ {[%clk 0:02:39]}  Bxf7 {[%clk 0:02:45]} 9. Bd3 {[%clk 0:02:35]}  Nbd7 {[%clk 0:02:41]} 10. Nd2 {[%clk 0:02:34]}  e5 {[%clk 0:02:39]} 11. O-O {[%clk 0:02:25]}  e4 {[%clk 0:02:37]} 12. Be2 {[%clk 0:02:20]}  O-O-O {[%clk 0:02:36]} 13. c4 {[%clk 0:02:19]}  e3 {[%clk 0:02:27]} 14. Nf5 {[%clk 0:02:11]}  exf2+ {[%clk 0:02:23]} 15. Rxf2 {[%clk 0:02:10]}  Qc7 {[%clk 0:02:15]} 16. c5 {[%clk 0:01:56]}  Nxc5 {[%clk 0:02:02]} 17. dxc5 {[%clk 0:01:52]}  Bxc5 {[%clk 0:02:02]} 18. Nb3 {[%clk 0:01:46]}  Bxf2+ {[%clk 0:02:00]} 19. Kxf2 {[%clk 0:01:46]}  Ne4+ {[%clk 0:01:57]} 20. Kg1 {[%clk 0:01:42]}  g6 {[%clk 0:01:51]} 21. Nfd4 {[%clk 0:01:38]}  Qg3 {[%clk 0:01:46]} 22. Qf1 {[%clk 0:01:34]}  Rhf8 {[%clk 0:01:40]} 23. Bf4 {[%clk 0:01:33]}  Qxh4 {[%clk 0:01:22]} 24. Rc1 {[%clk 0:01:30]}  Be8 {[%clk 0:01:17]} 25. Ne6 {[%clk 0:01:24]}  Bd7 {[%clk 0:01:06]} 26. Nxf8 {[%clk 0:01:17]}  Rxf8 {[%clk 0:01:05]} 27. g3 {[%clk 0:00:55]}  Nxg3 {[%clk 0:01:04]} 28. Bxg3 {[%clk 0:00:43]}  Rxf1+ {[%clk 0:01:03]} 29. Kxf1 {[%clk 0:00:43]}  Qxg3 {[%clk 0:01:03]} 30. Rc3 {[%clk 0:00:43]}  Bh3# {[%clk 0:01:02]} 0-1

[Event "December 5 Early 2023"]
[Site "https://www.chess.com"]
[Date "2023.12.05"]
[Round "3"]
[White "Nechitaylo, Nikita"]
[Black "Mushini Ajay"]
[Result "0-1"]
[Board "215"]
[TimeControl "180+1"]
[WhiteFideId "34138161"]
[BlackFideId "35066188"]
[WhiteElo "2199"]
[BlackElo "2407"]
[WhiteTeam "UKR"]
[BlackTeam "IND"]
[WhiteClock "0:00:04"]
[BlackClock "0:01:35"]

1. d4 {[%clk 0:03:00]}  c5 {[%clk 0:03:00]} 2. d5 {[%clk 0:03:00]}  d6 {[%clk 0:03:00]} 3. c4 {[%clk 0:03:01]}  b5 {[%clk 0:02:59]} 4. cxb5 {[%clk 0:03:01]}  a6 {[%clk 0:02:59]} 5. bxa6 {[%clk 0:03:01]}  Bxa6 {[%clk 0:03:00]} 6. Nc3 {[%clk 0:03:01]}  Nf6 {[%clk 0:03:00]} 7. e4 {[%clk 0:03:01]}  Bxf1 {[%clk 0:02:59]} 8. Kxf1 {[%clk 0:03:02]}  g6 {[%clk 0:02:59]} 9. g3 {[%clk 0:03:02]}  Bg7 {[%clk 0:03:00]} 10. Nf3 {[%clk 0:03:03]}  O-O {[%clk 0:03:00]} 11. Kg2 {[%clk 0:03:04]}  Nbd7 {[%clk 0:03:00]} 12. a4 {[%clk 0:03:01]}  Qa5 {[%clk 0:02:58]} 13. Ra3 {[%clk 0:03:01]}  Rfb8 {[%clk 0:02:59]} 14. Nd2 {[%clk 0:02:58]}  Ne5 {[%clk 0:02:50]} 15. Qc2 {[%clk 0:02:47]}  Qb4 {[%clk 0:02:46]} 16. f4 {[%clk 0:02:34]}  Nc4 {[%clk 0:02:38]} 17. Nxc4 {[%clk 0:02:28]}  Qxc4 {[%clk 0:02:38]} 18. b3 {[%clk 0:02:15]}  Qb4 {[%clk 0:02:26]} 19. Re1 {[%clk 0:01:38]}  Ng4 {[%clk 0:02:20]} 20. Bb2 {[%clk 0:01:34]}  c4 {[%clk 0:02:17]} 21. h3 {[%clk 0:01:01]}  Nh6 {[%clk 0:02:00]} 22. Rb1 {[%clk 0:00:43]}  cxb3 {[%clk 0:01:54]} 23. Qd3 {[%clk 0:00:34]}  f5 {[%clk 0:01:48]} 24. e5 {[%clk 0:00:25]}  dxe5 {[%clk 0:01:47]} 25. Nb5 {[%clk 0:00:10]}  e4 {[%clk 0:01:43]} 26. Qe2 {[%clk 0:00:03]}  Bxb2 {[%clk 0:01:38]} 27. Rxb2 {[%clk 0:00:02]}  Rxb5 {[%clk 0:01:37]} 28. Qxb5 {[%clk 0:00:02]}  Qxb5 {[%clk 0:01:37]} 29. axb5 {[%clk 0:00:03]}  Rxa3 {[%clk 0:01:36]} 30. b6 {[%clk 0:00:04]}  Ra8 {[%clk 0:01:24]} 31. Rxb3 {[%clk 0:00:04]}  Rb8 {[%clk 0:01:25]} 32. Rb5 {[%clk 0:00:03]}  Nf7 {[%clk 0:01:25]} 33. Kf2 {[%clk 0:00:02]}  Nd6 {[%clk 0:01:25]} 34. Rb4 {[%clk 0:00:02]}  Nc8 {[%clk 0:01:25]} 35. b7 {[%clk 0:00:02]}  Nd6 {[%clk 0:01:26]} 36. Ke3 {[%clk 0:00:03]}  Rxb7 {[%clk 0:01:26]} 37. Rxb7 {[%clk 0:00:03]}  Nxb7 {[%clk 0:01:27]} 38. Kd4 {[%clk 0:00:04]}  Nd6 {[%clk 0:01:28]} 39. Ke3 {[%clk 0:00:04]}  Kf7 {[%clk 0:01:28]} 40. g4 {[%clk 0:00:05]}  Kf6 {[%clk 0:01:29]} 41. g5+ {[%clk 0:00:06]}  Kf7 {[%clk 0:01:29]} 42. h4 {[%clk 0:00:06]}  e6 {[%clk 0:01:30]} 43. dxe6+ {[%clk 0:00:04]}  Kxe6 {[%clk 0:01:31]} 44. Kd4 {[%clk 0:00:05]}  Nb5+ {[%clk 0:01:31]} 45. Ke3 {[%clk 0:00:06]}  Kd5 {[%clk 0:01:31]} 46. h5 {[%clk 0:00:05]}  Nd4 {[%clk 0:01:32]} 47. hxg6 {[%clk 0:00:03]}  hxg6 {[%clk 0:01:32]} 48. Kf2 {[%clk 0:00:03]}  Nc2 {[%clk 0:01:32]} 49. Ke2 {[%clk 0:00:03]}  Kd4 {[%clk 0:01:33]} 50. Kd2 {[%clk 0:00:04]}  Ne3 {[%clk 0:01:31]} 51. Ke2 {[%clk 0:00:04]}  Nd5 {[%clk 0:01:32]} 52. Kd2 {[%clk 0:00:04]}  Nxf4 {[%clk 0:01:33]} 53. Ke1 {[%clk 0:00:05]}  Ne6 {[%clk 0:01:34]} 54. Kf2 {[%clk 0:00:04]}  Nxg5 {[%clk 0:01:35]} 0-1

[Event "December 5 Early 2023"]
[Site "https://www.chess.com"]
[Date "2023.12.05"]
[Round "3"]
[White "Zoete, Roelant"]
[Black "Szyszylo, Rafal"]
[Result "1/2-1/2"]
[Board "217"]
[TimeControl "180+1"]
[WhiteFideId "40103269"]
[BlackFideId "1109626"]
[WhiteElo "2192"]
[BlackElo "2401"]
[WhiteTeam "NED"]
[BlackTeam "POL"]
[WhiteClock "0:00:15"]
[BlackClock "0:00:06"]

1. e4 {[%clk 0:03:00]}  d6 {[%clk 0:02:56]} 2. d4 {[%clk 0:03:00]}  Nf6 {[%clk 0:02:55]} 3. Nc3 {[%clk 0:02:59]}  g6 {[%clk 0:02:53]} 4. Be3 {[%clk 0:02:59]}  Nc6 {[%clk 0:02:50]} 5. Qd2 {[%clk 0:02:58]}  e5 {[%clk 0:02:43]} 6. d5 {[%clk 0:02:56]}  Nd4 {[%clk 0:02:40]} 7. Bxd4 {[%clk 0:02:51]}  exd4 {[%clk 0:02:41]} 8. Qxd4 {[%clk 0:02:52]}  Bg7 {[%clk 0:02:41]} 9. f3 {[%clk 0:02:36]}  O-O {[%clk 0:02:37]} 10. Qe3 {[%clk 0:02:35]}  Re8 {[%clk 0:02:25]} 11. Bc4 {[%clk 0:02:33]}  a6 {[%clk 0:02:15]} 12. a4 {[%clk 0:02:28]}  Rb8 {[%clk 0:02:13]} 13. a5 {[%clk 0:02:26]}  c5 {[%clk 0:02:05]} 14. Nge2 {[%clk 0:02:18]}  b5 {[%clk 0:02:03]} 15. axb6 {[%clk 0:02:08]}  Qxb6 {[%clk 0:02:03]} 16. b3 {[%clk 0:02:04]}  Nd7 {[%clk 0:01:59]} 17. Rd1 {[%clk 0:01:49]}  Ne5 {[%clk 0:01:59]} 18. Bd3 {[%clk 0:01:28]}  f5 {[%clk 0:01:43]} 19. O-O {[%clk 0:01:21]}  fxe4 {[%clk 0:01:42]} 20. Bxe4 {[%clk 0:01:09]}  Bd7 {[%clk 0:00:58]} 21. Kh1 {[%clk 0:01:07]}  Nf7 {[%clk 0:00:47]} 22. Qf2 {[%clk 0:00:53]}  Qb4 {[%clk 0:00:44]} 23. Nb1 {[%clk 0:00:44]}  a5 {[%clk 0:00:42]} 24. Nd2 {[%clk 0:00:39]}  a4 {[%clk 0:00:41]} 25. bxa4 {[%clk 0:00:38]}  Qxa4 {[%clk 0:00:41]} 26. Qg3 {[%clk 0:00:28]}  Bb5 {[%clk 0:00:39]} 27. Rfe1 {[%clk 0:00:24]}  Be5 {[%clk 0:00:31]} 28. Qh3 {[%clk 0:00:19]}  Ng5 {[%clk 0:00:29]} 29. Qg4 {[%clk 0:00:19]}  Nf7 {[%clk 0:00:25]} 30. Ng3 {[%clk 0:00:17]}  Bg7 {[%clk 0:00:24]} 31. Ndf1 {[%clk 0:00:15]}  Bd7 {[%clk 0:00:21]} 32. Qh4 {[%clk 0:00:14]}  Rb4 {[%clk 0:00:16]} 33. Nd2 {[%clk 0:00:13]}  Rd4 {[%clk 0:00:15]} 34. Qf4 {[%clk 0:00:13]}  Be5 {[%clk 0:00:15]} 35. Qe3 {[%clk 0:00:13]}  Qa2 {[%clk 0:00:14]} 36. c3 {[%clk 0:00:13]}  Ra4 {[%clk 0:00:13]} 37. Nb1 {[%clk 0:00:13]}  Qb2 {[%clk 0:00:12]} 38. Ne2 {[%clk 0:00:13]}  Bg7 {[%clk 0:00:12]} 39. Rd2 {[%clk 0:00:13]}  Qb8 {[%clk 0:00:10]} 40. Rdd1 {[%clk 0:00:13]}  Ra3 {[%clk 0:00:09]} 41. Qd2 {[%clk 0:00:13]}  Ra1 {[%clk 0:00:08]} 42. Ng3 {[%clk 0:00:12]}  Ne5 {[%clk 0:00:08]} 43. Qc2 {[%clk 0:00:12]}  Nc4 {[%clk 0:00:07]} 44. Nd2 {[%clk 0:00:12]}  Rxd1 {[%clk 0:00:05]} 45. Qxd1 {[%clk 0:00:13]}  Nxd2 {[%clk 0:00:04]} 46. Qxd2 {[%clk 0:00:13]}  Qb3 {[%clk 0:00:04]} 47. Rb1 {[%clk 0:00:12]}  Qxc3 {[%clk 0:00:04]} 48. Qxc3 {[%clk 0:00:13]}  Bxc3 {[%clk 0:00:05]} 49. h3 {[%clk 0:00:13]}  Ba4 {[%clk 0:00:04]} 50. Ne2 {[%clk 0:00:13]}  Be5 {[%clk 0:00:03]} 51. Rb7 {[%clk 0:00:14]}  c4 {[%clk 0:00:03]} 52. Nc1 {[%clk 0:00:13]}  c3 {[%clk 0:00:03]} 53. Kg1 {[%clk 0:00:14]}  Bd1 {[%clk 0:00:03]} 54. Kf2 {[%clk 0:00:14]}  c2 {[%clk 0:00:03]} 55. Ke1 {[%clk 0:00:14]}  Bf4 {[%clk 0:00:04]} 56. Nb3 {[%clk 0:00:14]}  c1=Q {[%clk 0:00:03]} 57. Nxc1 {[%clk 0:00:14]}  Bxc1 {[%clk 0:00:04]} 58. Kxd1 {[%clk 0:00:15]}  Bf4 {[%clk 0:00:04]} 59. Rd7 {[%clk 0:00:15]}  Be5 {[%clk 0:00:05]} 60. Ke2 {[%clk 0:00:14]}  Ra8 {[%clk 0:00:05]} 61. Kd3 {[%clk 0:00:15]}  Ra3+ {[%clk 0:00:05]} 62. Kc2 {[%clk 0:00:15]}  Ra2+ {[%clk 0:00:06]} 63. Kb3 {[%clk 0:00:16]}  Rxg2 {[%clk 0:00:06]} 64. Rd8+ {[%clk 0:00:16]}  Kg7 {[%clk 0:00:06]} 65. Rd7+ {[%clk 0:00:17]}  Kh6 {[%clk 0:00:06]} 66. Kc4 {[%clk 0:00:15]}  Rg3 {[%clk 0:00:06]} 67. Kb5 {[%clk 0:00:15]}  Rxh3 {[%clk 0:00:06]} 68. Kc6 {[%clk 0:00:16]}  Rh2 {[%clk 0:00:06]} 69. Rxd6 {[%clk 0:00:13]}  Bxd6 {[%clk 0:00:06]} 70. Kxd6 {[%clk 0:00:14]}  Rd2 {[%clk 0:00:06]} 71. Ke6 {[%clk 0:00:14]}  Kg5 {[%clk 0:00:05]} 72. d6 {[%clk 0:00:15]}  Kf4 {[%clk 0:00:02]} 73. Ke7 {[%clk 0:00:15]}  h5 {[%clk 0:00:02]} 74. d7 {[%clk 0:00:15]}  g5 {[%clk 0:00:02]} 75. d8=Q {[%clk 0:00:15]}  Rxd8 {[%clk 0:00:03]} 76. Kxd8 {[%clk 0:00:16]}  g4 {[%clk 0:00:03]} 77. fxg4 {[%clk 0:00:15]}  hxg4 {[%clk 0:00:04]} 78. Bg2 {[%clk 0:00:15]}  Kg3 {[%clk 0:00:04]} 79. Ba8 {[%clk 0:00:16]}  Kf2 {[%clk 0:00:04]} 80. Ke7 {[%clk 0:00:15]}  g3 {[%clk 0:00:05]} 81. Kf6 {[%clk 0:00:15]}  g2 {[%clk 0:00:06]} 82. Bxg2 {[%clk 0:00:15]} 1/2-1/2

[Event "December 5 Early 2023"]
[Site "https://www.chess.com"]
[Date "2023.12.05"]
[Round "3"]
[White "Marcziter, Dmitrii"]
[Black "Dimitrijevic, Darko"]
[Result "0-1"]
[Board "222"]
[TimeControl "180+1"]
[WhiteFideId "13900765"]
[BlackFideId "14500892"]
[WhiteElo "2394"]
[BlackElo "2163"]
[WhiteTeam "GER"]
[BlackTeam "CRO"]
[WhiteClock "0:00:00"]
[BlackClock "0:00:04"]

1. d4 {[%clk 0:02:46]}  Nf6 {[%clk 0:02:58]} 2. c4 {[%clk 0:02:46]}  e6 {[%clk 0:02:57]} 3. Nf3 {[%clk 0:02:45]}  b6 {[%clk 0:02:56]} 4. a3 {[%clk 0:02:45]}  Ba6 {[%clk 0:02:56]} 5. Qc2 {[%clk 0:02:45]}  c5 {[%clk 0:02:51]} 6. e4 {[%clk 0:02:42]}  d6 {[%clk 0:02:44]} 7. Nc3 {[%clk 0:02:38]}  Be7 {[%clk 0:02:35]} 8. e5 {[%clk 0:02:29]}  Nfd7 {[%clk 0:02:31]} 9. Qe4 {[%clk 0:02:15]}  d5 {[%clk 0:02:27]} 10. cxd5 {[%clk 0:02:13]}  Bb7 {[%clk 0:02:26]} 11. Bc4 {[%clk 0:02:02]}  O-O {[%clk 0:02:17]} 12. O-O {[%clk 0:01:58]}  a6 {[%clk 0:02:14]} 13. Qg4 {[%clk 0:01:51]}  b5 {[%clk 0:02:12]} 14. Ba2 {[%clk 0:01:45]}  exd5 {[%clk 0:02:03]} 15. Nxd5 {[%clk 0:01:41]}  c4 {[%clk 0:02:01]} 16. Bh6 {[%clk 0:01:35]}  g6 {[%clk 0:02:01]} 17. Nxe7+ {[%clk 0:01:34]}  Qxe7 {[%clk 0:02:01]} 18. Bxf8 {[%clk 0:01:34]}  Nxf8 {[%clk 0:01:58]} 19. Rad1 {[%clk 0:01:30]}  Bd5 {[%clk 0:01:57]} 20. Bb1 {[%clk 0:01:28]}  Ne6 {[%clk 0:01:54]} 21. Rfe1 {[%clk 0:01:21]}  Nd7 {[%clk 0:01:52]} 22. h4 {[%clk 0:01:18]}  Nb6 {[%clk 0:01:50]} 23. h5 {[%clk 0:01:16]}  Kg7 {[%clk 0:01:49]} 24. Be4 {[%clk 0:01:15]}  Rd8 {[%clk 0:01:47]} 25. Bxd5 {[%clk 0:01:14]}  Nxd5 {[%clk 0:01:45]} 26. Nd2 {[%clk 0:01:10]}  c3 {[%clk 0:01:20]} 27. bxc3 {[%clk 0:01:01]}  Nxc3 {[%clk 0:01:19]} 28. Ne4 {[%clk 0:00:53]}  Nxd1 {[%clk 0:01:16]} 29. Rxd1 {[%clk 0:00:54]}  Nxd4 {[%clk 0:01:05]} 30. f4 {[%clk 0:00:22]}  Qxa3 {[%clk 0:00:57]} 31. h6+ {[%clk 0:00:17]}  Kf8 {[%clk 0:00:53]} 32. Qh4 {[%clk 0:00:12]}  Ne2+ {[%clk 0:00:42]} 33. Kf2 {[%clk 0:00:11]}  Rxd1 {[%clk 0:00:42]} 34. Qf6 {[%clk 0:00:06]}  Ke8 {[%clk 0:00:16]} 35. Nd6+ {[%clk 0:00:04]}  Kd7 {[%clk 0:00:16]} 36. Qxf7+ {[%clk 0:00:04]}  Kc6 {[%clk 0:00:16]} 37. Qe8+ {[%clk 0:00:04]}  Kc5 {[%clk 0:00:16]} 38. Qc8+ {[%clk 0:00:04]}  Kb4 {[%clk 0:00:15]} 39. Kxe2 {[%clk 0:00:03]}  Qd3+ {[%clk 0:00:14]} 40. Kf2 {[%clk 0:00:03]}  Rd2+ {[%clk 0:00:09]} 41. Kg1 {[%clk 0:00:03]}  Rd1+ {[%clk 0:00:08]} 42. Kh2 {[%clk 0:00:03]}  Qd4 {[%clk 0:00:06]} 43. Qf8 {[%clk 0:00:00]}  Ka4 {[%clk 0:00:04]} 0-1

[Event "December 5 Early 2023"]
[Site "https://www.chess.com"]
[Date "2023.12.05"]
[Round "3"]
[White "Pertinez Soria, Juan Luis"]
[Black "Hoffmann, Asa"]
[Result "0-1"]
[Board "223"]
[TimeControl "180+1"]
[WhiteFideId "2225620"]
[BlackFideId "2001470"]
[WhiteElo "2152"]
[BlackElo "2382"]
[WhiteTeam "ESP"]
[BlackTeam "USA"]
[WhiteClock "0:00:00"]
[BlackClock "0:00:32"]

1. e4 {[%clk 0:02:50]}  d6 {[%clk 0:02:59]} 2. d4 {[%clk 0:02:50]}  Nf6 {[%clk 0:02:59]} 3. Nc3 {[%clk 0:02:50]}  c6 {[%clk 0:02:59]} 4. Be3 {[%clk 0:02:49]}  Ng4 {[%clk 0:02:58]} 5. Bg5 {[%clk 0:02:49]}  Qb6 {[%clk 0:02:58]} 6. Qd2 {[%clk 0:02:46]}  e5 {[%clk 0:02:57]} 7. Nf3 {[%clk 0:02:43]}  f6 {[%clk 0:02:56]} 8. Bh4 {[%clk 0:02:41]}  h5 {[%clk 0:02:52]} 9. h3 {[%clk 0:02:37]}  Nh6 {[%clk 0:02:52]} 10. O-O-O {[%clk 0:02:27]}  Nd7 {[%clk 0:02:49]} 11. Bc4 {[%clk 0:02:24]}  Nf7 {[%clk 0:02:43]} 12. Bb3 {[%clk 0:02:16]}  g5 {[%clk 0:02:35]} 13. Bg3 {[%clk 0:02:16]}  h4 {[%clk 0:02:35]} 14. Bh2 {[%clk 0:02:16]}  Bh6 {[%clk 0:02:29]} 15. Qe2 {[%clk 0:01:41]}  g4+ {[%clk 0:02:27]} 16. Kb1 {[%clk 0:01:42]}  gxf3 {[%clk 0:02:26]} 17. Qc4 {[%clk 0:01:43]}  Rf8 {[%clk 0:02:21]} 18. Qe6+ {[%clk 0:01:40]}  Kd8 {[%clk 0:02:21]} 19. dxe5 {[%clk 0:01:31]}  fxg2 {[%clk 0:01:38]} 20. Rhg1 {[%clk 0:01:30]}  Kc7 {[%clk 0:01:30]} 21. exf6 {[%clk 0:01:07]}  Nde5 {[%clk 0:01:09]} 22. Qe7+ {[%clk 0:01:04]}  Bd7 {[%clk 0:01:09]} 23. Rxd6 {[%clk 0:00:56]}  Rae8 {[%clk 0:01:01]} 24. Rxd7+ {[%clk 0:00:52]}  Kc8 {[%clk 0:01:00]} 25. Qd6 {[%clk 0:00:18]}  Nxd6 {[%clk 0:00:57]} 26. Rxd6 {[%clk 0:00:16]}  Qxf2 {[%clk 0:00:54]} 27. f7 {[%clk 0:00:09]}  Rd8 {[%clk 0:00:42]} 28. Rxd8+ {[%clk 0:00:07]}  Rxd8 {[%clk 0:00:41]} 29. a4 {[%clk 0:00:07]}  Bf8 {[%clk 0:00:34]} 30. Be6+ {[%clk 0:00:06]}  Nd7 {[%clk 0:00:33]} 31. Ka2 {[%clk 0:00:00]}  b5 {[%clk 0:00:32]} 0-1

[Event "December 5 Early 2023"]
[Site "https://www.chess.com"]
[Date "2023.12.05"]
[Round "3"]
[White "Barath1308"]
[Black "Osiecki, Stanislaw"]
[Result "1-0"]
[Board "225"]
[TimeControl "180+1"]
[BlackFideId "1102990"]
[WhiteElo "2374"]
[BlackElo "2133"]
[BlackTeam "POL"]
[WhiteClock "0:00:57"]
[BlackClock "0:00:38"]

1. d4 {[%clk 0:03:00]}  Nf6 {[%clk 0:02:47]} 2. Nf3 {[%clk 0:02:59]}  d6 {[%clk 0:02:44]} 3. g3 {[%clk 0:02:58]}  g6 {[%clk 0:02:45]} 4. Bg2 {[%clk 0:02:58]}  Bg7 {[%clk 0:02:46]} 5. O-O {[%clk 0:02:58]}  O-O {[%clk 0:02:47]} 6. c4 {[%clk 0:02:58]}  Nbd7 {[%clk 0:02:47]} 7. Nc3 {[%clk 0:02:59]}  e5 {[%clk 0:02:47]} 8. h3 {[%clk 0:02:59]}  c6 {[%clk 0:02:46]} 9. e4 {[%clk 0:02:59]}  a5 {[%clk 0:02:46]} 10. Be3 {[%clk 0:02:57]}  Nh5 {[%clk 0:02:45]} 11. Re1 {[%clk 0:02:50]}  Qe7 {[%clk 0:02:45]} 12. Qc2 {[%clk 0:02:49]}  f5 {[%clk 0:02:44]} 13. Bg5 {[%clk 0:02:47]}  Bf6 {[%clk 0:02:44]} 14. Bxf6 {[%clk 0:02:46]}  Qxf6 {[%clk 0:02:43]} 15. exf5 {[%clk 0:02:44]}  gxf5 {[%clk 0:02:42]} 16. Rad1 {[%clk 0:02:40]}  e4 {[%clk 0:02:17]} 17. Nh2 {[%clk 0:02:35]}  Kh8 {[%clk 0:02:16]} 18. Qe2 {[%clk 0:02:12]}  Qg6 {[%clk 0:02:07]} 19. Qe3 {[%clk 0:01:56]}  Ndf6 {[%clk 0:01:56]} 20. d5 {[%clk 0:01:50]}  c5 {[%clk 0:01:49]} 21. Nb5 {[%clk 0:01:48]}  Nd7 {[%clk 0:01:39]} 22. Nc7 {[%clk 0:01:45]}  Rb8 {[%clk 0:01:35]} 23. Ne6 {[%clk 0:01:45]}  Rg8 {[%clk 0:01:26]} 24. g4 {[%clk 0:01:41]}  fxg4 {[%clk 0:01:18]} 25. Bxe4 {[%clk 0:01:39]}  Qf6 {[%clk 0:01:03]} 26. hxg4 {[%clk 0:01:33]}  Qxb2 {[%clk 0:00:56]} 27. Qh6 {[%clk 0:01:16]}  Nhf6 {[%clk 0:00:43]} 28. Ng5 {[%clk 0:01:08]}  Nf8 {[%clk 0:00:38]} 29. Nf7# {[%clk 0:00:57]} 1-0

[Event "December 5 Early 2023"]
[Site "https://www.chess.com"]
[Date "2023.12.05"]
[Round "3"]
[White "Jesusesmifuerza"]
[Black "Batbold, Nyamsuren"]
[Result "0-1"]
[Board "226"]
[TimeControl "180+1"]
[BlackFideId "4903331"]
[WhiteElo "2127"]
[BlackElo "2368"]
[BlackTeam "MGL"]
[WhiteClock "0:00:18"]
[BlackClock "0:00:55"]

1. d4 {[%clk 0:03:00]}  Nf6 {[%clk 0:02:58]} 2. Nf3 {[%clk 0:03:01]}  c5 {[%clk 0:02:55]} 3. e3 {[%clk 0:03:01]}  cxd4 {[%clk 0:02:55]} 4. exd4 {[%clk 0:03:02]}  d5 {[%clk 0:02:55]} 5. c3 {[%clk 0:03:02]}  Nc6 {[%clk 0:02:56]} 6. Bd3 {[%clk 0:03:03]}  Bg4 {[%clk 0:02:55]} 7. O-O {[%clk 0:03:03]}  e6 {[%clk 0:02:56]} 8. Nbd2 {[%clk 0:03:03]}  Be7 {[%clk 0:02:56]} 9. Re1 {[%clk 0:03:03]}  O-O {[%clk 0:02:57]} 10. h3 {[%clk 0:03:04]}  Bh5 {[%clk 0:02:57]} 11. Nf1 {[%clk 0:03:05]}  a6 {[%clk 0:02:56]} 12. Ng3 {[%clk 0:03:05]}  Bg6 {[%clk 0:02:56]} 13. Bxg6 {[%clk 0:03:05]}  hxg6 {[%clk 0:02:57]} 14. Bf4 {[%clk 0:03:05]}  b5 {[%clk 0:02:57]} 15. a3 {[%clk 0:03:05]}  a5 {[%clk 0:02:57]} 16. Qe2 {[%clk 0:03:05]}  b4 {[%clk 0:02:57]} 17. axb4 {[%clk 0:03:05]}  axb4 {[%clk 0:02:58]} 18. Ne5 {[%clk 0:03:03]}  Nxe5 {[%clk 0:02:45]} 19. Bxe5 {[%clk 0:03:01]}  bxc3 {[%clk 0:02:45]} 20. bxc3 {[%clk 0:03:00]}  Qd7 {[%clk 0:02:37]} 21. Qd3 {[%clk 0:02:52]}  Rxa1 {[%clk 0:02:31]} 22. Rxa1 {[%clk 0:02:51]}  Rc8 {[%clk 0:02:32]} 23. Nf1 {[%clk 0:02:30]}  Ne4 {[%clk 0:02:00]} 24. Rc1 {[%clk 0:02:20]}  Qa4 {[%clk 0:01:27]} 25. Nd2 {[%clk 0:02:05]}  Rxc3 {[%clk 0:01:12]} 26. Rxc3 {[%clk 0:01:50]}  Qa1+ {[%clk 0:01:12]} 27. Nb1 {[%clk 0:01:43]}  Nxc3 {[%clk 0:01:12]} 28. Qxc3 {[%clk 0:01:39]}  Qxb1+ {[%clk 0:01:11]} 29. Kh2 {[%clk 0:01:39]}  Bf6 {[%clk 0:01:11]} 30. Qc8+ {[%clk 0:01:32]}  Kh7 {[%clk 0:01:11]} 31. Qe8 {[%clk 0:01:28]}  Bxe5+ {[%clk 0:01:09]} 32. dxe5 {[%clk 0:01:28]}  Qf5 {[%clk 0:01:10]} 33. Qe7 {[%clk 0:01:23]}  g5 {[%clk 0:01:06]} 34. f3 {[%clk 0:01:18]}  Qxe5+ {[%clk 0:01:04]} 35. Kg1 {[%clk 0:01:16]}  Qf6 {[%clk 0:01:05]} 36. Qc5 {[%clk 0:01:11]}  Qa1+ {[%clk 0:01:03]} 37. Kh2 {[%clk 0:01:10]}  Qe5+ {[%clk 0:01:00]} 38. Kg1 {[%clk 0:01:08]}  Kg6 {[%clk 0:00:59]} 39. Qc2+ {[%clk 0:01:07]}  Qf5 {[%clk 0:00:58]} 40. Qd2 {[%clk 0:01:03]}  Qf4 {[%clk 0:00:58]} 41. Qd3+ {[%clk 0:01:00]}  Kf6 {[%clk 0:00:57]} 42. Kf2 {[%clk 0:00:57]}  Qc4 {[%clk 0:00:57]} 43. Qe3 {[%clk 0:00:40]}  d4 {[%clk 0:00:54]} 44. Qe4 {[%clk 0:00:37]}  Qc3 {[%clk 0:00:53]} 45. f4 {[%clk 0:00:32]}  Qd2+ {[%clk 0:00:51]} 46. Kg3 {[%clk 0:00:30]}  Qxf4+ {[%clk 0:00:50]} 47. Qxf4+ {[%clk 0:00:29]}  gxf4+ {[%clk 0:00:51]} 48. Kxf4 {[%clk 0:00:30]}  e5+ {[%clk 0:00:52]} 49. Ke4 {[%clk 0:00:30]}  Ke6 {[%clk 0:00:53]} 50. g4 {[%clk 0:00:31]}  f5+ {[%clk 0:00:54]} 51. gxf5+ {[%clk 0:00:30]}  Kf6 {[%clk 0:00:54]} 52. h4 {[%clk 0:00:30]}  d3 {[%clk 0:00:54]} 53. Kxd3 {[%clk 0:00:25]}  Kxf5 {[%clk 0:00:55]} 54. Ke3 {[%clk 0:00:25]}  Kg4 {[%clk 0:00:53]} 55. Ke4 {[%clk 0:00:24]}  Kxh4 {[%clk 0:00:54]} 56. Kxe5 {[%clk 0:00:24]}  g5 {[%clk 0:00:55]} 57. Ke4 {[%clk 0:00:22]}  g4 {[%clk 0:00:54]} 58. Ke3 {[%clk 0:00:22]}  Kg3 {[%clk 0:00:54]} 59. Ke2 {[%clk 0:00:21]}  Kh2 {[%clk 0:00:53]} 60. Kf1 {[%clk 0:00:20]}  g3 {[%clk 0:00:54]} 61. Ke2 {[%clk 0:00:18]}  g2 {[%clk 0:00:55]} 0-1